bitfinex-derivatives/quotes_ETHF0:USTF0_20260104
["timestamp","ask_amount","ask_price","bid_price","bid_amount"]
[1767567095694,1.04896414,3141.2,3139.9,0.1391989]
[1767567095991,0.13229079,3141.3,3139.9,0.1391989]
[1767567096192,1.1921374,3141.2,3139.8,0.94645942]
[1767567096386,0.14316832,3141.2,3139.8,0.94645942]
[1767567096580,0.14316832,3141.2,3139.8,1.08441672]
[1767567103804,4.393,3141.4,3139.9,0.1379573]
[1767567104099,1.04929042,3141.3,3139.9,0.1379573]
[1767567104288,1.04929042,3141.2,3139.9,0.1379573]
[1767567104490,4.393,3141.4,3139.9,0.1379573]
[1767567104701,1.04928885,3141.3,3139.9,0.1379573]
[1767567104903,1.04928885,3141.2,3139.9,0.1379573]
[1767567105093,4.393,3141.4,3139.9,0.1379573]
[1767567105294,1.04928832,3141.3,3139.9,0.1379573]
[1767567105494,1.04928832,3141.2,3139.9,0.1379573]
[1767567105694,4.393,3141.4,3139.9,0.1379573]
[1767567105901,1.04929481,3141.3,3139.9,0.1379573]
[1767567106100,1.04929481,3141.2,3139.9,0.1379573]
[1767567106301,4.393,3141.4,3139.9,0.1379573]
[1767567106501,1.04969561,3141.3,3139.9,0.1379573]
[1767567106701,1.04969561,3141.2,3139.9,0.1379573]
[1767567106901,4.393,3141.4,3139.9,0.1379573]
[1767567107102,1.04988258,3141.3,3139.9,0.1379573]
[1767567107302,1.04988258,3141.2,3139.9,0.1379573]
[1767567107509,4.393,3141.4,3139.9,0.1379573]
[1767567107697,1.05007942,3141.3,3139.9,0.1379573]
[1767567107897,1.05007942,3141.2,3139.9,0.1379573]
[1767567108098,4.393,3141.4,3139.9,0.1379573]
[1767567108294,1.05025835,3141.3,3139.9,0.1379573]
[1767567108497,1.05025835,3141.2,3139.9,0.1379573]
[1767567108706,4.393,3141.4,3139.9,0.1379573]
[1767567108906,1.0502112,3141.3,3139.9,0.1379573]
[1767567109094,1.0502112,3141.2,3139.9,0.1379573]
[1767567109299,4.393,3141.4,3139.9,0.1379573]
[1767567109501,1.05020778,3141.3,3139.9,0.1379573]
[1767567109699,0.14316832,3141.1,3139.8,0.94645942]
[1767567125120,0.14316832,3141.1,3139.8,0.15931]
[1767567131110,4.393,3141.4,3139.8,0.29552058]
[1767567131312,1.04935695,3141.3,3139.8,0.29552058]
[1767567131514,1.04935695,3141.2,3139.8,0.29552058]
[1767567131713,4.393,3141.4,3139.9,0.13621058]
[1767567131919,1.04936742,3141.3,3139.9,0.13621058]
[1767567132119,1.04936742,3141.2,3139.9,0.13621058]
[1767567132319,4.393,3141.4,3139.9,0.13621058]
[1767567132520,1.04939213,3141.3,3139.9,0.13621058]
[1767567132718,1.04939213,3141.2,3139.9,0.13621058]
[1767567132916,4.393,3141.4,3139.9,0.13621058]
[1767567133118,1.04939487,3141.3,3139.9,0.13621058]
[1767567133319,1.04939487,3141.2,3139.9,0.13621058]
[1767567133616,4.393,3141.4,3139.9,0.13621058]
[1767567133918,1.04941955,3141.3,3139.9,0.13621058]
[1767567134116,1.04941955,3141.2,3139.9,0.13621058]
[1767567134316,4.393,3141.4,3139.9,0.13621058]
[1767567134518,1.04944963,3141.3,3139.9,0.13621058]
[1767567134718,1.04944963,3141.2,3139.9,0.13621058]
[1767567134922,4.393,3141.4,3139.9,0.13621058]
[1767567135116,1.04944962,3141.3,3139.9,0.13621058]
[1767567135315,1.04944962,3141.2,3139.9,0.13621058]
[1767567135523,4.393,3141.4,3139.9,0.13621058]
[1767567135822,1.04947537,3141.3,3139.9,0.13621058]
[1767567136026,1.04947537,3141.2,3139.9,0.13621058]
[1767567136323,4.393,3141.4,3139.9,0.13621058]
[1767567136524,1.04951145,3141.3,3139.9,0.13621058]
[1767567136723,1.04951145,3141.2,3139.9,0.13621058]
[1767567136914,4.393,3141.4,3139.9,0.13621058]
[1767567137115,1.0495018,3141.3,3139.9,0.13621058]
[1767567137326,1.0495018,3141.2,3139.9,0.13621058]
[1767567137627,4.393,3141.4,3139.9,0.13621058]
[1767567137925,1.04951971,3141.3,3139.9,0.13621058]
[1767567138122,1.04951971,3141.2,3139.9,0.13621058]
[1767567138321,4.393,3141.4,3139.9,0.13621058]
[1767567138521,1.04954013,3141.3,3139.9,0.13621058]
[1767567138721,1.04954013,3141.2,3139.9,0.13621058]
[1767567138921,4.393,3141.4,3139.9,0.13621058]
[1767567139119,1.04954014,3141.3,3139.9,0.13621058]
[1767567139322,1.04954014,3141.2,3139.9,0.13621058]
[1767567139621,4.393,3141.4,3139.9,0.13621058]
[1767567139820,1.04956182,3141.3,3139.9,0.13621058]
[1767567140025,1.04956182,3141.2,3139.9,0.13621058]
[1767567140217,4.393,3141.4,3139.9,0.13621058]
[1767567140413,1.04954119,3141.3,3139.9,0.13621058]
[1767567140618,1.04954119,3141.2,3139.9,0.13621058]
[1767567140817,4.393,3141.4,3139.9,0.13621058]
[1767567141020,1.04954118,3141.3,3139.9,0.13621058]
[1767567141214,1.04954118,3141.2,3139.9,0.13621058]
[1767567141418,4.393,3141.4,3139.9,0.13621058]
[1767567141619,1.04952939,3141.3,3139.9,0.13621058]
[1767567141822,1.04952939,3141.2,3139.9,0.13621058]
[1767567142023,4.393,3141.4,3139.9,0.13621058]
[1767567142218,1.0495307,3141.3,3139.9,0.13621058]
[1767567142419,1.0495307,3141.2,3139.9,0.13621058]
[1767567142628,4.393,3141.4,3139.9,0.13621058]
[1767567142926,1.04950488,3141.3,3139.9,0.13621058]
[1767567143129,1.04950488,3141.2,3139.9,0.13621058]
[1767567143327,4.393,3141.4,3139.9,0.13621058]
[1767567143531,1.04948286,3141.3,3139.9,0.13621058]
[1767567143725,1.04948286,3141.2,3139.9,0.13621058]
[1767567143926,4.393,3141.4,3139.9,0.13621058]
[1767567144129,1.04948828,3141.3,3139.9,0.13621058]
[1767567144427,1.04948828,3141.2,3139.9,0.13621058]
[1767567144627,4.393,3141.4,3139.9,0.13621058]
[1767567144828,1.04946274,3141.3,3139.9,0.13621058]
[1767567145028,1.04946274,3141.2,3139.9,0.13621058]
[1767567145230,4.393,3141.4,3139.9,0.13621058]
[1767567145433,1.04944693,3141.3,3139.9,0.13621058]
[1767567145728,1.04944693,3141.2,3139.9,0.13621058]
[1767567145928,4.393,3141.4,3139.9,0.13621058]
[1767567146229,1.0494469,3141.3,3139.9,0.13621058]
[1767567146527,1.0494469,3141.2,3139.9,0.13621058]
[1767567146732,4.393,3141.4,3139.9,0.13621058]
[1767567146919,1.04943594,3141.3,3139.9,0.13621058]
[1767567147121,1.04943594,3141.2,3139.9,0.13621058]
[1767567147332,4.393,3141.4,3139.9,0.13621058]
[1767567147636,1.04942828,3141.3,3139.9,0.13621058]
[1767567147833,1.04942828,3141.2,3139.9,0.13621058]
[1767567148034,4.393,3141.4,3139.9,0.13621058]
[1767567148231,1.04942828,3141.3,3139.9,0.13621058]
[1767567148536,1.04942828,3141.2,3139.9,0.13621058]
[1767567148739,4.393,3141.4,3139.9,0.13621058]
[1767567148936,1.04942434,3141.3,3139.9,0.13621058]
[1767567149238,1.04942434,3141.2,3139.9,0.13621058]
[1767567149429,4.393,3141.4,3139.9,0.13621058]
[1767567149631,1.04949883,3141.3,3139.9,0.13621058]
[1767567149840,1.04949883,3141.2,3139.9,0.13621058]
[1767567150133,4.53278198,3141.4,3139.9,0.13621058]
[1767567150333,1.04949134,3141.3,3139.9,0.13621058]
[1767567150527,0.13970853,3141.1,3139.8,0.15931]
[1767567172955,0.13970853,3141.1,3139.3,0.13714051]
[1767567176646,1.04913266,3141.0,3139.3,0.13714051]
[1767567176846,0.13970853,3141.1,3139.3,0.13714051]
[1767567177145,1.04913266,3141.0,3139.3,0.13714051]
[1767567177345,0.13970853,3141.1,3139.3,0.13714051]
[1767567177749,1.04921334,3141.0,3139.3,0.13714051]
[1767567177950,0.13970853,3141.1,3139.3,0.13714051]
[1767567178249,1.04921248,3141.0,3139.3,0.13714051]
[1767567178447,0.13970853,3141.1,3139.3,0.13714051]
[1767567178642,1.04931466,3141.0,3139.3,0.13714051]
[1767567178839,0.13970853,3141.1,3139.3,0.13714051]
[1767567179049,1.04931415,3141.0,3139.3,0.13714051]
[1767567179248,0.13970853,3141.1,3139.3,0.13714051]
[1767567179552,1.04951955,3141.0,3139.3,0.13714051]
[1767567179755,0.13970853,3141.1,3139.3,0.13714051]
[1767567180052,1.04951462,3141.0,3139.3,0.13714051]
[1767567180238,0.13970853,3141.1,3139.3,0.13714051]
[1767567180444,1.04958943,3141.0,3139.3,0.13714051]
[1767567180644,0.13970853,3141.1,3139.3,0.13714051]
[1767567180842,1.04958944,3141.0,3139.3,0.13714051]
[1767567181046,0.13970853,3141.1,3139.3,0.13714051]
[1767567181252,1.04950958,3141.0,3139.3,0.13714051]
[1767567181453,0.13970853,3141.1,3139.3,0.13714051]
[1767567181643,1.04941777,3141.0,3139.3,0.13714051]
[1767567181845,0.13970853,3141.1,3139.3,0.13714051]
[1767567182045,1.04936925,3141.0,3139.3,0.13714051]
[1767567182351,0.13970853,3141.1,3139.3,0.13714051]
[1767567182545,1.04937435,3141.0,3139.3,0.13714051]
[1767567182748,0.13970853,3141.1,3139.3,0.13714051]
[1767567182951,1.04937693,3141.0,3139.3,0.13714051]
[1767567183164,0.13970853,3141.1,3139.3,0.13714051]
[1767567183455,1.04937548,3141.0,3139.3,0.13714051]
[1767567183641,0.13970853,3141.1,3139.3,0.13714051]
[1767567183841,1.04937449,3141.0,3139.3,0.13714051]
[1767567184055,0.13970853,3141.1,3139.3,0.13714051]
[1767567184247,1.04937328,3141.0,3139.3,0.13714051]
[1767567184447,0.13970853,3141.1,3139.3,0.13714051]
[1767567184649,1.04937716,3141.0,3139.3,0.13714051]
[1767567184850,0.13970853,3141.1,3139.3,0.13714051]
[1767567185049,1.04938124,3141.0,3139.3,0.13714051]
[1767567185359,0.13970853,3141.1,3139.3,0.13714051]
[1767567185557,1.04938065,3141.0,3139.3,0.13714051]
[1767567185755,0.13970853,3141.1,3139.3,0.13714051]
[1767567185957,1.04938083,3141.0,3139.3,0.13714051]
[1767567186261,0.13970853,3141.1,3139.3,0.13714051]
[1767567186447,1.04937985,3141.0,3139.3,0.13714051]
[1767567186747,0.13970853,3141.1,3139.3,0.13714051]
[1767567186946,1.04937985,3141.0,3139.3,0.13714051]
[1767567187153,0.13970853,3141.1,3139.3,0.13714051]
[1767567187349,1.04937958,3141.0,3139.3,0.13714051]
[1767567187549,0.13970853,3141.1,3139.3,0.13714051]
[1767567187759,1.04937875,3141.0,3139.3,0.13714051]
[1767567187961,0.13970853,3141.1,3139.3,0.13714051]
[1767567188257,1.04937867,3141.0,3139.3,0.13714051]
[1767567188456,0.13970853,3141.1,3139.3,0.13714051]
[1767567188758,1.04937787,3141.0,3139.3,0.13714051]
[1767567188959,0.13970853,3141.1,3139.3,0.13714051]
[1767567189159,1.04937804,3141.0,3139.3,0.13714051]
[1767567189358,0.13970853,3141.1,3139.3,0.13714051]
[1767567189557,1.04937709,3141.0,3139.3,0.13714051]
[1767567189749,0.13970853,3141.1,3139.3,0.13714051]
[1767567189952,1.04937709,3141.0,3139.3,0.13714051]
[1767567190153,0.13970853,3141.1,3139.3,0.13714051]
[1767567190360,1.04937715,3141.0,3139.3,0.13714051]
[1767567190559,0.13970853,3141.1,3139.4,0.92851446]
[1767567190759,1.04937597,3141.0,3139.4,0.92851446]
[1767567190961,0.13970853,3141.1,3139.4,0.92851446]
[1767567191260,1.0493743,3141.0,3139.4,0.92851446]
[1767567191460,0.13970853,3141.1,3139.4,0.92851446]
[1767567191659,1.04937355,3141.0,3139.4,0.92851446]
[1767567191861,0.13970853,3141.1,3139.4,0.92851446]
[1767567192061,1.04937487,3141.0,3139.4,0.92851446]
[1767567192260,0.13970853,3141.1,3139.4,0.92851446]
[1767567192453,1.04937526,3141.0,3139.4,0.92851446]
[1767567192654,0.13970853,3141.1,3139.4,0.92851446]
[1767567192850,1.04935537,3141.0,3139.4,0.92851446]
[1767567193055,0.13970853,3141.1,3139.5,0.14114887]
[1767567193259,1.04918354,3141.0,3139.5,0.14114887]
[1767567193558,0.13970853,3141.1,3139.5,0.14114887]
[1767567193762,1.04879616,3141.0,3139.5,0.14114887]
[1767567194060,0.13970853,3141.1,3139.5,0.14114887]
[1767567194260,1.04878036,3141.0,3139.5,0.14114887]
[1767567194455,0.13970853,3141.1,3139.5,0.14114887]
[1767567194656,1.04873145,3141.0,3139.5,0.14114887]
[1767567194857,0.13970853,3141.1,3139.5,0.14114887]
[1767567195058,1.04859804,3141.0,3139.5,0.14114887]
[1767567195258,0.13970853,3141.1,3139.5,0.14114887]
[1767567195458,1.04859879,3141.0,3139.5,0.14114887]
[1767567195659,0.13970853,3141.1,3139.5,0.14114887]
[1767567195958,1.0485628,3141.0,3139.5,0.14114887]
[1767567196158,0.13970853,3141.1,3139.5,0.14114887]
[1767567196363,1.04845378,3141.0,3139.5,0.14114887]
[1767567196658,0.13970853,3141.1,3139.5,0.14114887]
[1767567196860,1.04846473,3141.0,3139.5,0.14114887]
[1767567197061,0.13970853,3141.1,3139.5,0.14114887]
[1767567197260,1.04845394,3141.0,3139.5,0.14114887]
[1767567197461,0.13970853,3141.1,3139.5,0.14114887]
[1767567197656,1.04845564,3141.0,3139.5,0.14114887]
[1767567197856,0.13970853,3141.1,3139.5,0.14114887]
[1767567198064,1.04845065,3141.0,3139.5,0.14114887]
[1767567198269,0.13970853,3141.1,3139.5,0.14114887]
[1767567198568,1.04843738,3141.0,3139.5,0.14114887]
[1767567198767,0.13970853,3141.1,3139.5,0.14114887]
[1767567198968,1.04843774,3141.0,3139.5,0.14114887]
[1767567199168,0.13970853,3141.1,3139.5,0.14114887]
[1767567199370,1.04843924,3141.0,3139.5,0.14114887]
[1767567199670,0.13970853,3141.1,3139.5,0.14114887]
[1767567199863,1.04862059,3141.0,3139.5,0.14114887]
[1767567200165,0.13970853,3141.1,3139.5,0.14114887]
[1767567200364,1.04861723,3141.0,3139.5,0.14114887]
[1767567200571,1.04861723,3141.0,3139.2,4.97913214]
[1767567200572,0.9322197,3140.6,3139.2,0.45579214]
[1767567200767,4.416,3140.5,3139.2,0.45579214]
[1767567214688,4.416,3140.5,3139.3,0.14138941]
[1767567218891,4.416,3140.5,3139.2,0.45579214]
[1767567225092,4.55803045,3140.5,3139.2,0.45579214]
[1767567226498,4.55803045,3140.5,3139.1,0.0027856]
[1767567228997,0.14203045,3140.4,3139.1,0.0027856]
[1767567240416,0.13672178,3140.2,3139.1,0.0027856]
[1767567240615,0.13672178,3140.0,3138.4,0.78736559]
[1767567241606,0.13672178,3140.0,3138.4,0.78991391]
[1767567244117,0.13672178,3139.4,3138.4,0.00254832]
[1767567244306,0.13902792,3139.4,3138.4,0.00254832]
[1767567248316,6.13902792,3139.4,3138.4,0.00254832]
[1767567248517,0.13672178,3139.3,3137.8,0.78736559]
[1767567249614,0.13672178,3139.3,3137.8,0.79025727]
[1767567252418,0.78736559,3139.2,3137.8,0.00289168]
[1767567252617,0.13672178,3139.3,3137.8,0.00289168]
[1767567257627,0.13672178,3139.1,3137.8,0.00289168]
[1767567257923,0.13672178,3139.0,3137.1,0.14011732]
[1767567258717,0.13672178,3139.0,3137.1,0.14235087]
[1767567266147,0.13672178,3138.9,3137.1,0.14235087]
[1767567266346,0.13672178,3138.8,3137.1,0.14235087]
[1767567266547,0.13672178,3138.6,3137.1,0.00223355]
[1767567267442,4.413,3138.5,3137.1,0.00223355]
[1767567267643,0.13672178,3138.4,3137.1,0.00223355]
[1767567269934,0.13672178,3138.3,3137.1,0.00223355]
[1767567270444,0.13879816,3138.2,3137.1,0.00223355]
[1767567270636,0.13879816,3138.2,3136.3,0.14011732]
[1767567271738,0.13879816,3138.2,3136.3,0.14371005]
[1767567278351,1.17759567,3138.1,3136.3,0.14371005]
[1767567278553,0.13695175,3138.1,3136.3,0.14371005]
[1767567281248,0.13695175,3137.9,3136.3,0.14371005]
[1767567287264,0.13695175,3138.1,3136.3,0.14371005]
[1767567287467,1.18007926,3138.0,3136.3,0.14371005]
[1767567287764,1.04312751,3137.9,3136.3,0.14371005]
[1767567287963,0.13695175,3138.0,3136.3,0.14371005]
[1767567288170,1.04312439,3137.9,3136.3,0.14371005]
[1767567288364,0.13695175,3138.0,3136.3,0.14371005]
[1767567288564,1.04326767,3137.9,3136.3,0.14371005]
[1767567288765,0.13695175,3138.0,3136.3,0.14371005]
[1767567289062,1.043268,3137.9,3136.3,0.14371005]
[1767567289366,0.13695175,3138.0,3136.3,0.14371005]
[1767567289566,1.04344211,3137.9,3136.3,0.14371005]
[1767567289762,0.13695175,3138.0,3136.3,0.14371005]
[1767567290067,1.04344211,3137.9,3136.3,0.14371005]
[1767567290269,0.13695175,3138.0,3136.3,0.14371005]
[1767567290467,1.04364687,3137.9,3136.3,0.14371005]
[1767567290666,0.13695175,3138.0,3136.3,0.14371005]
[1767567290867,1.04364654,3137.9,3136.3,0.14371005]
[1767567291056,0.13695175,3138.0,3136.3,0.14371005]
[1767567291261,1.04364654,3137.9,3136.3,0.14371005]
[1767567291568,0.13695175,3138.0,3136.3,0.14371005]
[1767567291772,1.0438526,3137.9,3136.3,0.14371005]
[1767567292068,0.13695175,3138.0,3136.3,0.14371005]
[1767567292270,1.0438526,3137.9,3136.3,0.14371005]
[1767567292470,0.13695175,3138.0,3136.3,0.14371005]
[1767567292671,1.04410333,3137.9,3136.3,0.14371005]
[1767567292869,0.13695175,3138.0,3136.3,0.14371005]
[1767567293070,1.04410331,3137.9,3136.3,0.14371005]
[1767567293268,0.13695175,3138.0,3136.3,0.14371005]
[1767567293468,1.04432161,3137.9,3136.3,0.14371005]
[1767567293674,0.13695175,3138.4,3136.4,0.13230668]
[1767567293875,1.04443697,3138.3,3136.4,0.13230668]
[1767567294068,1.04443697,3138.2,3136.4,0.13230668]
[1767567294268,0.13695175,3138.4,3136.4,0.13230668]
[1767567294462,1.04468336,3138.3,3136.4,0.13230668]
[1767567294674,1.04468336,3138.2,3136.4,0.13230668]
[1767567294976,0.13695175,3138.4,3136.4,0.13230668]
[1767567295168,1.04468212,3138.3,3136.4,0.13230668]
[1767567295371,1.04468212,3138.2,3136.4,0.13230668]
[1767567295572,0.13695175,3138.4,3136.4,0.13230668]
[1767567295768,1.04497701,3138.3,3136.4,0.13230668]
[1767567295970,1.04497701,3138.2,3136.4,0.13230668]
[1767567296169,0.13695175,3138.4,3136.4,0.13230668]
[1767567296370,1.04531298,3138.3,3136.4,0.13230668]
[1767567296677,1.04531298,3138.2,3136.4,0.13230668]
[1767567296878,0.13695175,3138.4,3136.4,0.13230668]
[1767567297078,1.04531198,3138.3,3136.4,0.13230668]
[1767567297284,0.13925789,3139.4,3137.1,0.13230668]
[1767567297581,0.13925789,3139.4,3137.2,0.13230668]
[1767567300680,0.13925789,3139.4,3137.6,0.14515967]
[1767567302880,0.13925789,3139.4,3137.7,0.14515967]
[1767567305583,0.13925789,3139.4,3137.8,0.14515967]
[1767567314487,0.13925789,3139.4,3138.0,0.78806228]
[1767567316383,0.13925789,3139.4,3137.5,0.15943]
[1767567316384,0.13925789,3139.4,3137.7,0.78806228]
[1767567327195,0.13737792,3139.2,3137.7,0.78806228]
[1767567328495,0.13737792,3138.8,3137.0,6.57824611]
[1767567328800,0.13737792,3138.8,3137.2,0.78806228]
[1767567334386,0.13737792,3138.8,3136.8,0.15946]
[1767567334387,0.14083938,3138.5,3136.9,0.78806228]
[1767567334697,0.14083938,3138.5,3136.8,0.94752228]
[1767567335101,0.14083938,3138.5,3136.8,0.78806228]
[1767567341093,0.14083938,3138.5,3136.7,0.78806228]
[1767567341998,0.13546219,3138.2,3136.6,0.14382392]
[1767567342501,0.13546219,3138.2,3136.4,0.78806228]
[1767567344805,0.13546219,3137.9,3136.3,0.16308273]
[1767567345009,0.13546219,3137.9,3136.3,0.95114501]
[1767567345604,0.13546219,3137.9,3136.3,0.16308273]
[1767567345909,0.13546219,3137.9,3136.3,0.95114501]
[1767567350006,0.13546219,3137.9,3136.3,1.09085715]
[1767567352709,0.29485219,3138.3,3136.7,0.13971214]
[1767567353012,0.29485219,3138.3,3136.9,0.92777442]
[1767567356427,0.13546219,3138.3,3136.9,0.92777442]
[1767567362526,5.33366018,3138.7,3137.0,0.1365425]
[1767567362831,1.0376305,3138.6,3137.0,0.1365425]
[1767567363034,1.0376305,3138.5,3137.0,0.1365425]
[1767567363233,1.0376305,3138.4,3137.0,0.1365425]
[1767567363429,1.0376305,3138.3,3137.0,0.1365425]
[1767567363632,0.1375979,3138.6,3137.0,0.1365425]
[1767567363831,1.03802278,3138.5,3137.0,0.1365425]
[1767567364132,1.03802278,3138.4,3137.0,0.1365425]
[1767567364333,1.03802278,3138.3,3137.0,0.1365425]
[1767567364521,0.1375979,3138.6,3137.0,0.1365425]
[1767567364724,1.03850662,3138.5,3137.0,0.1365425]
[1767567364932,1.03850662,3138.4,3137.0,0.1365425]
[1767567365133,1.03850662,3138.3,3137.0,0.1365425]
[1767567365431,0.1375979,3138.6,3137.0,0.1365425]
[1767567365632,1.03861359,3138.5,3137.0,0.1365425]
[1767567365831,1.03861359,3138.4,3137.0,0.1365425]
[1767567366031,1.03861359,3138.3,3137.0,0.1365425]
[1767567366232,0.1375979,3138.6,3137.0,0.1365425]
[1767567366432,1.03866418,3138.5,3137.0,0.1365425]
[1767567366637,1.03866418,3138.4,3137.0,0.1365425]
[1767567366834,1.03866418,3138.3,3137.0,0.1365425]
[1767567367022,0.1375979,3138.6,3137.0,0.1365425]
[1767567367224,1.03866148,3138.5,3137.0,0.1365425]
[1767567367427,0.1375979,3138.6,3137.0,0.1365425]
[1767567367428,1.03866148,3138.4,3137.0,0.1365425]
[1767567367627,1.03866148,3138.3,3137.0,0.1365425]
[1767567367828,0.1375979,3138.5,3137.0,0.1365425]
[1767567368028,1.03870927,3138.4,3137.0,0.1365425]
[1767567368228,1.03870927,3138.3,3137.0,0.1365425]
[1767567368434,0.1375979,3138.5,3137.0,0.1365425]
[1767567368636,1.03875457,3138.4,3137.0,0.1365425]
[1767567368828,0.1375979,3138.5,3137.0,0.1365425]
[1767567368829,1.03875457,3138.3,3137.0,0.1365425]
[1767567369031,0.1375979,3138.5,3137.0,0.1365425]
[1767567369330,1.03874857,3138.4,3137.0,0.1365425]
[1767567369529,1.03874857,3138.3,3137.0,0.1365425]
[1767567369730,0.1375979,3138.5,3137.0,0.1365425]
[1767567369931,1.03878288,3138.4,3137.0,0.1365425]
[1767567370236,0.2969579,3138.9,3137.0,0.1365425]
[1767567370432,5.60041392,3138.8,3137.2,0.92460478]
[1767567370632,1.17641392,3138.7,3137.2,0.92460478]
[1767567370830,1.03881602,3138.6,3137.2,0.92460478]
[1767567371230,1.17641392,3138.6,3137.2,0.92460478]
[1767567371438,1.03881602,3138.5,3137.2,0.92460478]
[1767567371638,0.1375979,3138.6,3137.2,0.92460478]
[1767567375237,4.424,3138.8,3137.2,0.92460478]
[1767567375438,1.03835809,3138.7,3137.2,0.92460478]
[1767567375745,1.03835809,3138.6,3137.2,0.92460478]
[1767567376043,4.424,3138.8,3137.2,0.92460478]
[1767567376235,1.038395,3138.7,3137.2,0.92460478]
[1767567376435,1.038395,3138.6,3137.2,0.92460478]
[1767567376638,4.424,3138.8,3137.2,0.1365425]
[1767567376842,1.03834621,3138.7,3137.2,0.1365425]
[1767567377040,1.03834621,3138.6,3137.2,0.1365425]
[1767567377236,4.424,3138.8,3137.2,0.1365425]
[1767567377436,1.03831747,3138.7,3137.2,0.1365425]
[1767567377638,4.425,3138.6,3137.2,0.1365425]
[1767567387551,0.1375979,3138.9,3137.3,0.1365425]
[1767567387751,1.03880103,3138.8,3137.3,0.1365425]
[1767567387948,0.1375979,3138.9,3137.3,0.1365425]
[1767567388147,1.03880376,3138.8,3137.3,0.1365425]
[1767567388346,0.1375979,3138.9,3137.3,0.1365425]
[1767567388646,1.03878471,3138.8,3137.3,0.1365425]
[1767567388847,0.1375979,3138.9,3137.3,0.1365425]
[1767567389048,1.03878629,3138.8,3137.3,0.1365425]
[1767567389248,0.1375979,3138.9,3137.3,0.1365425]
[1767567389449,1.03877437,3138.8,3137.3,0.1365425]
[1767567389749,0.1375979,3138.9,3137.3,0.1365425]
[1767567399064,0.1375979,3138.9,3137.1,0.15945]
[1767567399764,0.1375979,3138.9,3137.1,0.30287638]
[1767567400356,0.1375979,3138.9,3137.1,0.15945]
[1767567401167,0.13471858,3138.7,3137.1,0.15945]
[1767567402066,1.03905808,3138.6,3136.8,0.78841691]
[1767567402266,0.13471858,3138.5,3136.8,0.78841691]
[1767567402466,0.13471858,3138.3,3136.8,0.78841691]
[1767567409571,0.13471858,3138.3,3136.8,0.93184329]
[1767567410372,4.423,3138.4,3136.9,0.14342638]
[1767567420080,0.13471858,3138.7,3136.9,0.14342638]
[1767567422880,0.13471858,3138.7,3136.9,0.30288638]
[1767567423183,0.13471858,3138.7,3137.0,0.13715606]
[1767567423387,0.13471858,3138.7,3137.0,0.29660606]
[1767567424374,0.13471858,3138.7,3137.1,0.13715606]
[1767567424585,0.13471858,3138.7,3137.3,0.13715606]
[1767567430195,4.421,3139.0,3137.4,0.13715606]
[1767567430489,0.00230614,3139.4,3137.5,0.13715606]
[1767567430695,0.00230614,3139.4,3137.9,0.13715606]
[1767567432499,0.00230614,3139.4,3138.0,0.13715606]
[1767567438592,0.13988207,3139.2,3137.3,0.15943]
[1767567438794,0.13988207,3139.2,3137.5,0.78785905]
[1767567439202,0.13988207,3138.9,3137.3,0.15943]
[1767567439807,0.13988207,3138.9,3137.5,0.78785905]
[1767567449912,0.00230614,3139.4,3138.0,0.29655606]
[1767567450113,0.00230614,3139.4,3138.5,0.78785905]
[1767567450410,0.00230614,3139.4,3138.5,0.79190527]
[1767567454112,0.00230614,3139.4,3138.5,0.00404622]
[1767567455014,6.00230614,3139.4,3138.5,0.00404622]
[1767567464321,0.00230614,3139.4,3138.5,0.00404622]
[1767567465123,6.00230614,3139.4,3138.5,0.00404622]
[1767567466212,0.00230614,3139.4,3138.5,0.00404622]
[1767567471822,0.00230614,3139.4,3138.6,0.78785905]
[1767567476434,0.00230614,3139.4,3138.5,0.00404622]
[1767567476628,0.00230614,3139.4,3138.5,0.79190527]
[1767567481044,0.00230614,3139.4,3138.5,0.00404622]
[1767567538878,0.61282932,3140.0,3138.5,0.14312587]
[1767567539186,0.13397476,3140.5,3138.9,0.13907965]
[1767567539983,0.13779622,3140.5,3138.9,0.13907965]
[1767567540586,0.00382146,3140.5,3139.3,0.92278532]
[1767567540984,0.01907,3141.0,3139.4,0.13485295]
[1767567542273,0.02149829,3141.0,3139.4,0.13485295]
[1767567545984,0.02149829,3141.0,3139.8,0.92278532]
[1767567546783,0.02149829,3141.0,3139.9,0.13485295]
[1767567547282,0.14029731,3142.0,3140.0,0.13485295]
[1767567547484,0.14029731,3141.8,3140.0,0.13485295]
[1767567548288,0.14312419,3141.8,3140.0,0.13485295]
[1767567548882,0.14312419,3141.8,3140.4,0.13485295]
[1767567549079,0.00282688,3141.8,3140.4,0.13485295]
[1767567549283,0.00282688,3141.8,3140.8,0.92278532]
[1767567549584,0.00282688,3141.8,3140.8,0.92595187]
[1767567557097,0.14029731,3142.3,3140.8,0.92595187]
[1767567557987,0.14369649,3142.3,3140.8,0.92595187]
[1767567558484,0.14369649,3142.3,3141.3,0.78645702]
[1767567560199,0.14029731,3142.2,3140.8,0.00316655]
[1767567560398,0.14029731,3142.2,3140.8,0.78962357]
[1767567561502,0.14029731,3141.9,3140.8,0.00316655]
[1767567564615,0.14029731,3141.7,3140.8,0.00316655]
[1767567564916,0.14029731,3141.5,3139.9,0.78645702]
[1767567566013,0.14029731,3141.5,3139.9,0.78966765]
[1767567568007,0.14029731,3141.2,3139.9,0.00321063]
[1767567570218,1.02845046,3141.1,3139.9,0.00321063]
[1767567570422,0.14029731,3141.0,3139.9,0.00321063]
[1767567571119,0.14211645,3140.9,3139.9,0.00321063]
[1767567584637,0.14224816,3140.8,3139.9,0.00321063]
[1767567591638,0.14224816,3140.8,3139.3,0.78645702]
[1767567592746,0.14224816,3140.8,3139.3,0.78983395]
[1767567597448,1.03252885,3140.7,3139.6,0.78645702]
[1767567597642,0.14224816,3140.8,3139.6,0.78645702]
[1767567597840,1.03250133,3140.7,3139.6,0.78645702]
[1767567598038,0.14224816,3140.8,3139.6,0.78645702]
[1767567598239,1.03250131,3140.7,3139.6,0.78645702]
[1767567598438,0.14224816,3140.8,3139.6,0.78645702]
[1767567598642,1.03264291,3140.7,3139.6,0.78645702]
[1767567598843,0.14224816,3140.8,3139.6,0.78645702]
[1767567599141,1.03264291,3140.7,3139.5,0.78645702]
[1767567599347,0.14224816,3140.8,3139.5,0.78645702]
[1767567599546,1.03275934,3140.7,3139.5,0.78645702]
[1767567599747,0.14224816,3140.8,3139.5,0.78645702]
[1767567599940,1.03280199,3140.7,3139.5,0.78645702]
[1767567600142,0.14224816,3140.8,3139.5,0.78645702]
[1767567600339,1.70628346,3141.2,3139.9,0.14066675]
[1767567600538,0.15923,3141.5,3140.1,0.92712377]
[1767567600743,1.0330456,3141.4,3140.1,0.78645702]
[1767567600943,1.0330456,3141.3,3140.1,0.78645702]
[1767567601147,0.13567006,3141.4,3140.1,0.78645702]
[1767567601347,1.03287625,3141.3,3140.0,0.78645702]
[1767567601547,0.13567006,3141.4,3140.0,0.78645702]
[1767567601743,1.03311986,3141.3,3140.0,0.78645702]
[1767567601948,0.13567006,3141.4,3140.3,0.78645702]
[1767567602256,4.422,3141.6,3140.3,0.92712377]
[1767567602553,4.422,3141.6,3140.6,0.78645702]